bitfinex/quotes_SOLUSD_20240821
["timestamp","ask_amount","ask_price","bid_price","bid_amount"]
[1724221488995,13.03,143.77,143.76,6.14676015]
[1724221489194,13.03,143.77,143.75,6.14676015]
[1724221489395,21.8493,143.81,143.76,6.14676015]
[1724221489625,13.03,143.78,143.75,6.14676015]
[1724221489844,13.03,143.78,143.76,6.14676015]
[1724221490027,13.03,143.78,143.75,6.14676015]
[1724221490325,13.03,143.78,143.76,6.14676015]
[1724221490500,13.03,143.78,143.75,6.14676015]
[1724221490692,13.03,143.78,143.76,6.14676015]
[1724221490892,13.03,143.78,143.75,6.14676015]
[1724221491114,13.03,143.78,143.76,6.14676015]
[1724221491325,13.03,143.78,143.75,6.14676015]
[1724221491501,13.03,143.78,143.76,6.14676015]
[1724221491700,13.03,143.78,143.75,6.14676015]
[1724221491914,13.03,143.78,143.76,6.14676015]
[1724221492116,13.03,143.78,143.75,6.14676015]
[1724221492317,13.03,143.78,143.76,6.14676015]
[1724221492641,13.03,143.78,143.75,6.14676015]
[1724221492925,13.03,143.78,143.76,6.14676015]
[1724221493125,13.03,143.78,143.75,6.14676015]
[1724221493294,13.03,143.78,143.76,6.14676015]
[1724221493497,13.03,143.78,143.75,6.14676015]
[1724221493799,13.03,143.78,143.76,6.14676015]
[1724221494009,13.03,143.78,143.75,6.14676015]
[1724221494322,13.03,143.79,143.76,6.14676015]
[1724221494500,13.03,143.79,143.75,0.12549]
[1724221494700,13.03,143.79,143.76,6.14680098]
[1724221495004,13.03,143.79,143.75,0.25098]
[1724221495324,13.03,143.79,143.76,6.1467831]
[1724221495495,13.03,143.79,143.75,0.25098]
[1724221495693,13.03,143.79,143.76,6.14677816]
[1724221495920,13.03,143.79,143.73,10.13752734]
[1724221496122,13.03,143.79,143.71,12.89894251]
[1724221496123,29.75816462,143.81,143.74,16.28429125]
[1724221496308,13.03,143.8,143.75,16.28429125]
[1724221496512,13.03,143.8,143.76,6.14676391]
[1724221496714,13.03,143.8,143.77,6.14676391]
[1724221496920,13.03,143.8,143.78,6.14676391]
[1724221497118,85.90265228,143.85,143.79,0.25098]
[1724221497306,13.03,143.81,143.79,0.25098]
[1724221497505,13.03,143.81,143.78,6.39774391]
[1724221497728,13.03,143.81,143.78,0.25098]
[1724221497918,13.03,143.81,143.78,6.3959168]
[1724221498227,13.03,143.81,143.78,0.25098]
[1724221498407,13.03,143.81,143.78,6.3959168]
[1724221498613,13.03,143.81,143.78,0.25098]
[1724221498816,13.03,143.81,143.78,6.3959168]
[1724221499009,13.03,143.81,143.78,0.25098]
[1724221499335,13.03,143.81,143.78,6.3959168]
[1724221499530,31.02856462,143.85,143.78,0.25098]
[1724221499701,13.03,143.8,143.78,6.3959168]
[1724221499906,13.03,143.8,143.78,0.25098]
[1724221500210,31.02856462,143.85,143.79,16.27946334]
[1724221500409,13.03,143.83,143.8,6.3959168]
[1724221500717,13.03,143.83,143.81,6.1449368]
[1724221500920,13.03,143.83,143.81,6.14137483]
[1724221501130,13.03,143.83,143.8,0.25098]
[1724221501334,13.03,143.83,143.79,0.25098]
[1724221501544,13.03,143.83,143.8,6.14035664]
[1724221501709,13.03,143.83,143.81,6.26584664]
[1724221501906,13.03,143.83,143.8,6.14035664]
[1724221502213,13.03,143.83,143.81,1.64157354]
[1724221502420,13.03,143.83,143.81,0.25098]
[1724221503133,13.03,143.83,143.82,0.25098]
[1724221503337,13.03,143.83,143.8,0.25098]
[1724221504135,22.141,143.88,143.8,0.25098]
[1724221504303,13.03,143.84,143.8,0.25098]
[1724221504508,13.03,143.84,143.79,6.39094838]
[1724221504737,13.03,143.84,143.79,0.25098]
[1724221505039,13.03,143.82,143.78,26.39094838]
[1724221505212,13.03,143.82,143.8,0.12549]
[1724221505411,13.03,143.82,143.8,0.25098]
[1724221506015,13.03,143.83,143.8,0.25098]
[1724221508319,45.0,143.87,143.8,0.25098]
[1724221508539,13.03,143.83,143.8,0.25098]
[1724221509722,13.03,143.81,143.8,0.25098]
[1724221513356,13.03,143.81,143.78,26.14154108]
[1724221513644,52.12,143.85,143.76,6.14154108]
[1724221513645,13.03,143.79,143.76,6.14154108]
[1724221513828,13.03,143.77,143.74,6.14154108]
[1724221514220,13.03,143.79,143.74,6.14154108]
[1724221514622,13.03,143.77,143.74,6.14154108]
[1724221514824,13.03,143.77,143.75,20.12549]
[1724221515940,13.03,143.77,143.76,0.12549]
[1724221516356,13.03,143.77,143.75,0.25098]
[1724221516531,13.03,143.77,143.74,6.39564564]
[1724221516724,13.03,143.75,143.74,6.39564564]
[1724221516926,13.03,143.75,143.74,26.39564564]
[1724221517353,13.03,143.75,143.74,20.25098]
[1724221517551,13.03,143.75,143.74,26.39564564]
[1724221517750,13.03,143.75,143.74,20.25098]
[1724221517955,13.03,143.75,143.74,26.39564564]
[1724221518160,13.03,143.75,143.74,20.25098]
[1724221518365,23.0168,143.83,143.74,26.39564564]
[1724221518670,13.03,143.76,143.74,20.25098]
[1724221518833,13.03,143.76,143.74,26.39564564]
[1724221519034,13.03,143.76,143.74,20.25098]
[1724221519250,13.03,143.76,143.74,26.39564564]
[1724221519435,13.03,143.76,143.74,20.25098]
[1724221519651,13.03,143.76,143.74,26.39564564]
[1724221519839,13.03,143.76,143.74,20.25098]
[1724221520036,13.03,143.76,143.74,26.39564564]
[1724221520353,45.0,143.82,143.74,20.25098]
[1724221520539,13.03,143.79,143.75,6.14466564]
[1724221520742,13.03,143.77,143.76,0.25098]
[1724221522764,23.0168,143.83,143.76,0.25098]
[1724221522936,13.03,143.78,143.76,1.64166832]
[1724221524147,13.03,143.78,143.76,1.64189366]
[1724221524546,13.03,143.78,143.76,0.25098]
[1724221524748,13.03,143.78,143.75,26.39569738]
[1724221524943,13.03,143.78,143.75,20.25098]
[1724221525155,13.03,143.78,143.75,26.39569738]
[1724221525354,13.03,143.78,143.75,20.25098]
[1724221525662,13.03,143.78,143.75,26.39569738]
[1724221525847,13.03,143.78,143.75,20.25098]
[1724221526047,13.03,143.78,143.75,26.39569738]
[1724221526365,13.03,143.78,143.75,20.25098]
[1724221526660,13.03,143.78,143.75,26.39569738]
[1724221526863,13.03,143.78,143.75,20.25098]
[1724221527041,13.03,143.78,143.75,26.39569738]
[1724221527247,13.03,143.78,143.75,20.25098]
[1724221527450,13.03,143.78,143.75,26.39569738]
[1724221527771,13.03,143.76,143.75,20.25098]
[1724221528248,13.03,143.78,143.75,26.39718547]
[1724221528456,13.03,143.78,143.75,20.25098]
[1724221528779,13.03,143.78,143.75,0.25098]
[1724221529074,13.03,143.78,143.75,6.39718547]
[1724221529635,13.03,143.8,143.76,7.53704187]
[1724221529854,13.03,143.8,143.77,1.64173004]
[1724221530256,52.12,143.85,143.77,20.25098]
[1724221530464,13.03,143.81,143.77,20.25098]
[1724221530933,13.03,143.81,143.77,0.25098]
[1724221531139,13.03,143.81,143.78,0.25098]
[1724221531367,13.03,143.81,143.77,20.0]
[1724221531560,13.03,143.81,143.78,0.25098]
[1724221531960,13.03,143.79,143.78,0.25098]
[1724221532347,13.03,143.79,143.77,20.25098]
[1724221532877,13.03,143.79,143.77,26.39568872]
[1724221533035,13.03,143.79,143.77,20.25098]
[1724221533238,13.03,143.79,143.77,0.25098]
[1724221533461,13.03,143.79,143.76,6.39568872]
[1724221533653,13.03,143.77,143.76,0.25098]
[1724221533844,13.03,143.77,143.76,6.39489665]
[1724221534051,13.03,143.77,143.76,26.39489665]
[1724221534663,13.03,143.8,143.76,26.39489665]
[1724221534885,13.03,143.8,143.77,6.14391665]
[1724221535172,13.03,143.78,143.74,6.14391665]
[1724221535342,13.03,143.78,143.75,6.14391665]
[1724221535665,13.03,143.78,143.76,6.14391665]
[1724221535847,13.03,143.78,143.74,6.14391665]
[1724221536051,13.03,143.78,143.73,10.13757839]
[1724221536255,13.03,143.78,143.75,0.12549]
[1724221536571,13.03,143.78,143.76,6.14678302]
[1724221536771,13.03,143.78,143.77,0.25098]
[1724221537445,13.03,143.78,143.76,6.39776302]
[1724221537647,13.03,143.78,143.76,0.25098]
[1724221537846,13.03,143.78,143.76,6.39776302]
[1724221538153,13.03,143.78,143.76,0.25098]
[1724221538352,13.03,143.78,143.76,6.39776302]
[1724221538561,13.03,143.78,143.76,0.25098]
[1724221538763,13.03,143.78,143.76,6.39776302]
[1724221538963,13.03,143.78,143.76,0.25098]
[1724221539271,13.03,143.78,143.77,6.14678302]
[1724221539476,13.03,143.78,143.77,6.39776302]
[1724221539962,13.03,143.78,143.77,0.25098]
[1724221540469,13.03,143.78,143.77,6.39876768]
[1724221540655,13.03,143.78,143.77,0.25098]
[1724221540864,13.03,143.78,143.77,6.39876768]
[1724221541048,13.03,143.78,143.77,0.25098]
[1724221541250,13.03,143.78,143.77,6.39876768]
[1724221545157,13.03,143.78,143.77,6.40013877]
[1724221546270,13.03,143.8,143.77,6.40013877]
[1724221546570,13.03,143.8,143.78,6.40013877]
[1724221546751,13.03,143.8,143.79,6.14915877]
[1724221547276,13.03,143.8,143.79,0.12549]
[1724221547855,13.03,143.8,143.78,6.40013877]
[1724221548158,13.03,143.8,143.78,0.25098]
[1724221548357,13.03,143.8,143.78,6.40013877]
[1724221548675,13.03,143.8,143.78,0.25098]
[1724221549371,13.03,143.8,143.77,6.400292]
[1724221549576,13.03,143.8,143.78,6.149312]
[1724221549755,13.03,143.8,143.79,0.12549]
[1724221550072,13.03,143.8,143.78,6.149312]
[1724221551472,13.03,143.8,143.79,6.149312]
[1724221551676,13.03,143.8,143.78,6.149312]
[1724221551881,13.03,143.8,143.79,6.149312]
[1724221552063,13.03,143.8,143.78,6.149312]
[1724221552550,13.03,143.8,143.77,0.25098]
[1724221552753,21.6612,143.82,143.78,6.149312]
[1724221553064,13.03,143.79,143.78,6.149312]
[1724221553242,13.03,143.79,143.78,6.274802]
[1724221554480,13.03,143.79,143.78,0.12549]
[1724221554666,13.03,143.79,143.78,6.27606325]
[1724221555382,13.03,143.79,143.78,6.15057325]
[1724221556775,13.03,143.79,143.78,6.27606325]
[1724221557080,13.03,143.79,143.78,6.27605722]
[1724221557469,13.03,143.79,143.78,0.12549]
[1724221557684,13.03,143.79,143.78,6.2755965]
[1724221557986,13.03,143.79,143.78,6.1501065]
[1724221560589,13.03,143.79,143.75,16.29316283]
[1724221560792,13.03,143.77,143.76,0.25098]
[1724221560985,13.03,143.77,143.76,6.14982563]
[1724221561656,13.03,143.77,143.76,6.15191549]
[1724221562256,13.03,143.77,143.74,16.2979494]
[1724221562490,13.03,143.77,143.75,6.15191549]
[1724221562792,13.03,143.77,143.76,6.15191549]
[1724221562971,13.03,143.77,143.75,6.15191549]
[1724221563156,13.03,143.77,143.76,6.15191549]
[1724221563369,45.0,143.77,143.72,16.2979494]
[1724221563583,65.15,143.78,143.73,6.15191549]
[1724221563783,13.03,143.74,143.71,10.14603391]
[1724221564061,13.03,143.74,143.72,16.3002921]
[1724221564262,13.03,143.74,143.73,6.15425819]
[1724221564671,13.03,143.74,143.73,6.40523819]
[1724221565972,13.03,143.74,143.73,6.27974819]
[1724221566166,13.03,143.74,143.7,16.3002921]
[1724221566373,13.03,143.74,143.69,6.15425819]
[1724221566689,13.03,143.74,143.7,6.15425819]
[1724221566891,13.03,143.74,143.69,6.15425819]
[1724221567079,13.03,143.74,143.7,6.15425819]
[1724221567400,13.03,143.74,143.69,6.15425819]
[1724221567571,13.03,143.74,143.7,6.40523819]
[1724221567770,13.03,143.74,143.7,0.25098]
[1724221568091,13.03,143.72,143.7,6.40523819]
[1724221568295,13.03,143.72,143.69,6.15425819]
[1724221568498,13.03,143.72,143.67,6.15425819]
[1724221568662,13.03,143.72,143.68,6.15425819]
[1724221568862,13.03,143.72,143.67,6.15686557]
[1724221569070,13.03,143.72,143.66,6.15686557]
[1724221569269,13.03,143.72,143.67,20.0]
[1724221569584,13.03,143.72,143.68,0.25098]
[1724221569894,13.03,143.7,143.67,20.0]
[1724221570397,13.03,143.7,143.66,20.0]
[1724221570573,13.03,143.7,143.65,26.15751511]
[1724221570774,13.03,143.7,143.65,20.0]
[1724221570974,13.03,143.7,143.65,26.15751511]
[1724221571194,13.03,143.7,143.65,20.0]
[1724221571705,13.03,143.7,143.66,0.25098]
[1724221572083,13.03,143.7,143.65,20.0]
[1724221572580,13.03,143.7,143.64,20.0]
[1724221573578,13.03,143.7,143.65,0.25098]
[1724221575796,13.03,143.68,143.65,0.25098]
[1724221575998,13.03,143.68,143.63,6.15453616]
[1724221576174,13.03,143.66,143.62,13.42526423]
[1724221576374,13.03,143.66,143.62,7.27072807]
[1724221577301,13.03,143.64,143.62,7.27072807]
[1724221577480,13.03,143.64,143.61,16.30487115]
[1724221577681,13.03,143.64,143.62,20.0]
[1724221578202,13.03,143.64,143.61,16.30840888]
[1724221579600,13.03,143.64,143.62,0.12549]
[1724221580107,13.03,143.64,143.62,0.25098]
[1724221582007,15.3696,143.65,143.62,0.25098]
[1724221582222,13.03,143.66,143.62,0.25098]
[1724221582889,13.03,143.66,143.61,6.40851444]
[1724221590010,6.1346,143.68,143.61,6.40851444]
[1724221590205,13.03,143.67,143.62,1.39224388]
[1724221590514,13.03,143.67,143.63,0.25098]
[1724221591183,13.03,143.67,143.64,0.25098]
[1724221591385,13.03,143.67,143.62,0.25098]
[1724221591612,22.3293,143.72,143.62,1.64317129]
[1724221591796,13.03,143.69,143.62,0.25098]
[1724221592000,13.03,143.69,143.62,7.52623404]
[1724221594605,13.03,143.67,143.62,7.52623404]
[1724221597013,13.03,143.67,143.62,0.25098]
[1724221598491,13.03,143.65,143.62,7.51982386]
[1724221598905,13.03,143.67,143.62,0.25098]
[1724221599218,22.3293,143.72,143.62,7.5192978]
[1724221599404,13.03,143.68,143.63,20.0]
[1724221599604,13.03,143.68,143.64,0.25098]
[1724221611159,13.03,143.68,143.64,6.40668681]
[1724221611747,13.03,143.68,143.64,0.25098]
[1724221612235,13.03,143.68,143.64,6.40661935]
[1724221612960,13.03,143.68,143.64,6.40695265]
[1724221613164,13.03,143.68,143.65,6.15597265]
[1724221613332,13.03,143.68,143.66,0.25098]
[1724221614156,13.03,143.68,143.65,6.40694554]
[1724221614357,13.03,143.68,143.66,6.15596554]
[1724221614860,13.03,143.68,143.65,0.25098]
[1724221615037,13.03,143.68,143.65,6.40694819]
[1724221615235,13.03,143.68,143.66,6.15596819]
[1724221616167,13.03,143.68,143.65,0.25098]
[1724221616361,13.03,143.68,143.66,6.15649521]
[1724221616561,13.03,143.68,143.65,6.15649521]
[1724221616730,13.03,143.68,143.66,6.40747521]
[1724221616936,13.03,143.68,143.65,6.15649521]
[1724221617157,13.03,143.68,143.66,6.40747521]
[1724221617360,13.03,143.68,143.66,0.25098]
[1724221617572,13.03,143.7,143.66,0.12549]
[1724221617781,13.03,143.7,143.66,6.15649521]
[1724221618075,13.03,143.7,143.67,0.25098]
[1724221618950,22.3293,143.72,143.67,0.25098]
[1724221619156,22.3293,143.72,143.68,0.25098]
[1724221619356,13.03,143.72,143.67,7.54835035]
[1724221619564,13.03,143.72,143.68,1.64273529]
[1724221619950,22.2404,143.75,143.68,7.7992305]
[1724221620149,13.03,143.73,143.68,1.64273529]
[1724221620351,13.03,143.73,143.68,0.25098]
[1724221620568,13.03,143.73,143.68,6.40465812]
[1724221620748,13.03,143.73,143.69,6.15367812]
[1724221620949,13.03,143.73,143.7,0.25098]
[1724221621665,13.03,143.73,143.71,0.25098]
[1724221621865,13.03,143.73,143.69,0.25098]
[1724221622751,13.03,143.73,143.68,6.40492625]
[1724221623178,22.2404,143.75,143.69,7.54548616]
[1724221623179,13.03,143.75,143.69,7.54548616]
[1724221623354,13.03,143.75,143.7,6.40492625]
[1724221623554,13.03,143.73,143.7,6.40492625]
[1724221623755,13.03,143.73,143.7,0.25098]
[1724221623955,13.03,143.73,143.7,6.40492625]
[1724221624174,13.03,143.73,143.71,6.15394625]
[1724221624374,13.03,143.73,143.72,0.25098]
[1724221629475,13.03,143.75,143.72,0.25098]
[1724221629687,13.03,143.75,143.73,0.25098]
[1724221630188,13.03,143.75,143.72,0.25098]
[1724221636779,22.157,143.79,143.72,0.25098]
[1724221636984,13.03,143.77,143.72,0.25098]
[1724221638796,22.157,143.79,143.72,0.25098]
[1724221639012,13.03,143.77,143.72,0.25098]
[1724221639175,13.03,143.8,143.73,15.9413]
[1724221639380,13.03,143.8,143.74,0.25098]
[1724221639581,13.03,143.8,143.74,20.25098]
[1724221640199,13.03,143.8,143.74,26.39710748]
[1724221640513,13.03,143.8,143.74,20.25098]
[1724221640690,13.03,143.8,143.75,1.39086055]
[1724221640891,13.03,143.8,143.76,0.25098]
[1724221641109,13.03,143.8,143.76,1.6418119]
[1724221642223,13.03,143.8,143.76,0.25098]
[1724221642514,13.03,143.8,143.75,0.25098]
[1724221644891,13.03,143.78,143.75,0.25098]
[1724221646392,22.1924,143.83,143.75,0.25098]
[1724221646689,13.03,143.78,143.75,0.25098]
[1724221648802,45.0,143.82,143.75,0.25098]
[1724221649003,13.03,143.79,143.75,0.25098]
[1724221650731,22.1924,143.83,143.75,0.25098]
[1724221650936,13.03,143.8,143.75,0.25098]
[1724221651729,22.1924,143.83,143.75,0.25098]
[1724221651934,13.03,143.8,143.75,0.25098]
[1724221652145,22.1924,143.83,143.75,1.64179469]
[1724221652431,13.03,143.82,143.75,0.25098]
[1724221652734,22.1924,143.83,143.75,0.25098]
[1724221652917,13.03,143.83,143.75,1.6417641]
[1724221653227,13.03,143.83,143.75,8.0888641]
[1724221653435,13.03,143.83,143.76,20.0]
[1724221653624,13.03,143.83,143.77,0.25098]
[1724221654126,13.03,143.8,143.77,0.25098]
[1724221655221,13.03,143.82,143.77,0.25098]
[1724221655406,13.03,143.82,143.77,1.64161185]
[1724221655905,13.03,143.82,143.77,0.25098]
[1724221656724,14.88086462,143.85,143.77,0.25098]
[1724221656925,13.03,143.82,143.77,0.25098]
[1724221657242,13.03,143.8,143.77,0.25098]
[1724221657811,13.03,143.78,143.76,20.0]
[1724221658220,14.88086462,143.85,143.75,20.0]
[1724221658428,13.03,143.78,143.74,20.0]
[1724221659215,13.03,143.78,143.75,0.25098]
[1724221659742,13.03,143.76,143.75,0.12549]
[1724221660123,13.03,143.78,143.75,0.12549]
[1724221661009,13.03,143.78,143.75,0.25098]
[1724221662551,25.3537341,143.87,143.75,0.25098]
[1724221662552,6.972,143.86,143.77,23.0692]
[1724221662723,22.8483969,143.9,143.78,79.06557325]
[1724221662917,13.03,143.87,143.78,79.19106325]
[1724221663136,13.03,143.87,143.78,66.16106325]
[1724221663342,13.03,143.85,143.78,66.16106325]
[1724221663520,22.8483969,143.9,143.79,6.13483785]
[1724221663722,13.03,143.84,143.8,66.31745878]
[1724221663928,22.8483969,143.9,143.81,0.25098]
[1724221664226,22.8483969,143.9,143.78,26.13479422]
[1724221664430,13.03,143.83,143.78,26.13479422]
[1724221665234,22.8483969,143.9,143.78,26.13479422]
[1724221665519,13.03,143.85,143.78,26.1336908]
[1724221665718,13.03,143.83,143.79,0.25098]
[1724221665942,13.03,143.83,143.79,0.12549]
[1724221667128,13.03,143.83,143.79,0.25098]
[1724221669045,13.03,143.83,143.79,1.64135752]
[1724221669457,13.03,143.83,143.79,0.25098]
[1724221669964,13.03,143.8,143.73,32.83542615]
[1724221670128,13.03,143.78,143.73,15.4532]
[1724221671156,13.03,143.78,143.74,0.25098]
[1724221671448,13.03,143.78,143.74,20.0]
[1724221672641,13.03,143.78,143.75,0.25098]
[1724221676259,13.03,143.8,143.75,0.25098]
[1724221676456,13.03,143.8,143.75,1.64161146]
[1724221676755,13.03,143.8,143.75,0.25098]
[1724221677653,13.03,143.78,143.75,0.25098]
[1724221683472,22.7991,143.84,143.75,0.25098]
[1724221683473,13.03,143.8,143.75,1.64188421]
[1724221683772,13.03,143.8,143.75,0.25098]
[1724221684175,13.03,143.81,143.75,0.25098]
[1724221684477,22.7991,143.84,143.75,0.25098]
[1724221684653,13.03,143.82,143.75,1.64157526]
[1724221685592,13.03,143.82,143.75,51.38725773]
[1724221685892,13.03,143.82,143.76,26.13627773]
[1724221686097,13.03,143.82,143.77,0.25098]
[1724221686273,15.3464,143.87,143.77,0.25098]
[1724221686274,13.03,143.84,143.77,0.25098]
[1724221686884,13.03,143.8,143.77,0.25098]
[1724221687389,13.03,143.81,143.77,0.25098]
[1724221687687,13.03,143.79,143.77,0.12549]
[1724221689371,13.03,143.79,143.76,0.25098]
[1724221689571,13.03,143.79,143.77,0.25098]
[1724221689776,52.12,143.85,143.75,0.25098]
[1724221689777,13.03,143.8,143.75,0.25098]
[1724221691986,13.03,143.81,143.75,0.25098]
[1724221693616,13.03,143.79,143.75,0.25098]
[1724221694676,13.03,143.81,143.75,0.25098]
[1724221697409,13.03,143.81,143.75,6.38920477]
[1724221697601,13.03,143.81,143.76,20.0]
[1724221697795,13.03,143.79,143.76,20.0]
[1724221698206,13.03,143.79,143.75,26.13822477]
[1724221698422,13.03,143.79,143.75,20.0]
[1724221698714,13.03,143.79,143.75,26.13822477]
[1724221698884,13.03,143.81,143.76,1.39076942]
[1724221699085,13.03,143.81,143.77,0.25098]
[1724221699314,13.03,143.81,143.76,0.25098]
[1724221702083,13.03,143.81,143.76,6.38907754]
[1724221702313,13.03,143.81,143.77,21.39053693]
[1724221702498,13.03,143.81,143.78,0.25098]
[1724221703094,13.03,143.81,143.76,20.0]
[1724221703095,13.03,143.81,143.79,0.25098]
[1724221703290,13.03,143.81,143.77,0.25098]
[1724221704503,13.03,143.81,143.76,6.38907754]
[1724221704713,13.03,143.81,143.77,20.0]
[1724221704889,13.03,143.81,143.78,0.25098]
[1724221705588,13.03,143.81,143.79,0.25098]
[1724221705788,13.03,143.81,143.77,0.25098]
[1724221707021,13.03,143.83,143.77,1.64155109]
[1724221707929,13.03,143.83,143.77,0.25098]
[1724221708632,13.03,143.81,143.77,0.25098]
[1724221709204,13.03,143.81,143.78,0.25098]
[1724221709406,13.03,143.81,143.77,20.0]
[1724221709613,13.03,143.81,143.78,0.25098]
[1724221709923,13.03,143.81,143.75,6.13736372]
[1724221710095,13.03,143.79,143.75,6.13736372]
[1724221711397,13.03,143.77,143.76,20.0]
[1724221712722,80.7181,143.77,143.74,6.14317387]
[1724221712921,65.15,143.75,143.67,6.14835022]
[1724221713229,16.0458,143.67,143.65,6.12479575]
[1724221713397,16.0458,143.67,143.6,100.0]
[1724221713597,52.12,143.64,143.61,6.13530526]
[1724221713806,13.03,143.62,143.61,6.13530526]
[1724221714224,13.03,143.62,143.6,100.0]
[1724221716103,16.0458,143.67,143.6,100.0]
[1724221716300,13.03,143.62,143.6,100.0]
[1724221716529,32.65,143.63,143.6,100.0]
[1724221717201,32.65,143.63,143.61,0.25098]
[1724221717818,32.65,143.65,143.61,0.25098]
[1724221718631,32.65,143.65,143.61,1.64335611]
[1724221721841,32.65,143.65,143.61,0.25098]
[1724221725938,32.65,143.67,143.61,0.25098]
[1724221726240,32.65,143.67,143.61,20.25098]
[1724221727036,32.65,143.65,143.61,20.25098]
[1724221729752,32.65,143.65,143.61,0.25098]
[1724221729944,32.65,143.65,143.61,20.25098]
[1724221734256,6.0475,143.72,143.61,20.25098]
[1724221734459,32.65,143.68,143.61,20.25098]
[1724221736445,13.05,143.65,143.61,20.25098]
[1724221736644,13.05,143.67,143.62,1.39227298]
[1724221736850,13.05,143.67,143.63,0.25098]
[1724221737164,13.05,143.67,143.63,1.64308102]
[1724221738474,13.05,143.65,143.63,0.25098]
[1724221738653,13.05,143.65,143.64,0.25098]
[1724221738967,13.05,143.65,143.62,0.25098]
[1724221740753,13.05,143.63,143.6,100.0]
[1724221742096,13.05,143.63,143.61,0.25098]
[1724221745688,52.2,143.71,143.61,0.25098]
[1724221745886,13.05,143.66,143.61,20.25098]
[1724221746269,13.05,143.66,143.61,0.25098]
[1724221746480,13.05,143.66,143.61,20.25098]
[1724221746667,13.05,143.64,143.61,20.25098]
[1724221747090,45.0,143.7,143.61,20.25098]
[1724221747286,13.05,143.65,143.61,20.25098]
[1724221751385,6.0475,143.72,143.61,20.25098]
[1724221751588,6.0475,143.72,143.62,52.5704178]
[1724221751795,13.05,143.69,143.63,20.25098]
[1724221752363,13.05,143.67,143.63,20.25098]
[1724221755599,13.05,143.67,143.63,26.33533369]
[1724221756193,13.05,143.67,143.63,36.40199717]
[1724221757586,13.05,143.67,143.63,26.33533369]
[1724221757797,13.05,143.67,143.63,36.40199717]
[1724221758173,13.05,143.67,143.63,36.39947745]
[1724221758484,13.05,143.67,143.64,6.08336391]
[1724221758698,13.05,143.67,143.65,20.25098]
[1724221758902,13.05,143.69,143.65,20.25098]
[1724221763195,15.2181,143.73,143.65,26.33525449]
[1724221763397,15.2181,143.73,143.66,7.4761462]
[1724221763398,13.05,143.7,143.66,7.4761462]
[1724221763590,13.05,143.7,143.67,0.25098]
[1724221764280,13.05,143.7,143.66,6.33360584]
[1724221766075,13.05,143.7,143.66,6.33370966]
[1724221766284,13.05,143.7,143.66,0.25098]
[1724221766781,13.05,143.7,143.66,6.33370966]
[1724221767199,13.05,143.7,143.66,0.25098]
[1724221767635,13.05,143.7,143.66,6.33370966]
[1724221767905,13.05,143.7,143.66,0.25098]
[1724221768401,13.05,143.7,143.66,6.33370966]
[1724221768977,13.05,143.7,143.66,0.25098]
[1724221769483,13.05,143.7,143.66,6.33370966]
[1724221769683,13.05,143.7,143.66,0.25098]
[1724221769886,13.05,143.7,143.66,1.64274377]